bitfinex-derivatives/quotes_BNBF0:USTF0_20250904
["timestamp","ask_amount","ask_price","bid_price","bid_amount"]
[1756965864382,0.20549462,846.88,846.15,0.79540225]
[1756965868481,0.20549462,846.88,846.16,0.79540225]
[1756965868681,0.20549462,846.88,846.15,0.79540225]
[1756965870393,0.20549462,846.88,846.17,0.79540225]
[1756965870589,0.20549462,846.88,846.22,0.79540225]
[1756965871593,0.20549462,846.88,846.23,0.79540225]
[1756965873291,0.20549462,846.88,846.24,0.79540225]
[1756965873895,0.20549462,846.88,846.25,0.79540225]
[1756965875394,0.20549462,846.88,846.26,0.79540225]
[1756965876390,0.20549462,846.88,846.27,0.79540225]
[1756965876791,0.20549462,846.88,846.29,0.79540225]
[1756965877496,0.20549462,846.88,846.3,0.79540225]
[1756965878397,0.20549462,846.88,846.31,0.79540225]
[1756965878598,0.20549462,846.88,846.29,0.79540225]
[1756965880193,0.9999552,846.88,846.3,0.79540225]
[1756965880497,0.79446058,846.87,846.3,0.79540225]
[1756965880993,0.9999552,846.88,846.3,0.79540225]
[1756965881197,0.79446058,846.87,846.3,0.79540225]
[1756965883001,0.9999552,846.88,846.3,0.79540225]
[1756965883499,0.20549462,846.88,846.29,0.79540225]
[1756965884396,0.20549462,846.88,846.3,0.79540225]
[1756965886797,0.9999552,846.88,846.3,0.79540225]
[1756965888198,1.00039385,846.88,846.16,1.0612515]
[1756965888403,1.00039385,846.88,846.3,0.79586928]
[1756965888702,0.20549462,846.88,846.32,0.79586928]
[1756965888902,0.20549462,846.88,846.31,0.79586928]
[1756965889605,0.20549462,846.88,846.32,0.79586928]
[1756965892106,0.20549462,846.88,846.33,0.79586928]
[1756965894007,0.20549462,846.88,846.31,0.79586928]
[1756965895003,0.20549462,846.88,846.4,0.79586928]
[1756965895209,0.20549462,846.88,846.41,0.79586928]
[1756965896608,0.20549462,846.88,846.42,0.79586928]
[1756965896909,0.20549462,846.88,846.43,0.79586928]
[1756965897305,0.20549462,846.88,846.42,0.79586928]
[1756965898011,0.20549462,846.88,846.44,0.79586928]
[1756965898410,0.20549462,846.88,846.43,0.79586928]
[1756965902314,0.20549462,846.88,846.42,0.79527681]
[1756965903408,0.20549462,846.88,845.54,0.20556927]
[1756965903409,0.20549462,846.88,846.36,0.79527681]
[1756965907311,0.20549462,846.88,846.35,0.79527681]
[1756965908711,0.20549462,846.88,846.16,1.0612515]
[1756965908712,0.20549462,846.88,846.37,0.79527681]
[1756965910416,0.20549462,846.88,846.36,0.79527681]
[1756965913525,0.20549462,846.88,846.41,0.79527681]
[1756965913718,0.20549462,846.88,846.41,0.7948218]
[1756965914819,0.20549462,846.88,845.54,0.20556927]
[1756965914820,0.20549462,846.88,846.32,0.7948218]
[1756965915719,0.20549462,846.88,845.54,0.20556927]
[1756965915720,0.20549462,846.88,846.33,0.7948218]
[1756965916320,0.20549462,846.88,846.32,0.7948218]
[1756965920324,0.20549462,846.88,846.31,0.7948218]
[1756965922630,0.20549462,846.88,846.35,0.7948218]
[1756965923329,0.20549462,846.88,846.36,0.7948218]
[1756965924528,0.20549462,846.88,846.42,0.7948218]
[1756965925429,0.20549462,846.88,846.43,0.7948218]
[1756965925626,0.20549462,846.88,846.44,0.7948218]
[1756965927226,0.20549462,846.88,846.45,0.7948218]
[1756965928233,0.20549462,846.88,846.46,0.7948218]
[1756965931431,0.20549462,846.88,846.45,0.7948218]
[1756965931635,0.20549462,846.88,846.46,0.7948218]
[1756965934237,0.20549462,846.88,846.47,0.7948218]
[1756965935533,0.20549462,846.88,846.48,0.7948218]
[1756965935732,0.20549462,846.88,846.47,0.7948218]
[1756965936933,0.20549462,846.88,846.49,0.7948218]
[1756965939735,0.20549462,846.88,846.5,0.7948218]
[1756965940941,0.20549462,846.88,846.51,0.7948218]
[1756965941342,0.20549462,846.88,846.52,0.7948218]
[1756965943338,0.20549462,846.88,846.53,0.7948218]
[1756965944248,0.20549462,846.88,846.52,0.7948218]
[1756965945245,0.20549462,846.88,846.53,0.7948218]
[1756965946249,0.20549462,846.88,846.54,0.7948218]
[1756965947949,0.20549462,846.88,846.55,0.7948218]
[1756965948245,0.20549462,846.88,846.49,0.7948218]
[1756965949948,0.20549462,846.88,846.43,0.7948218]
[1756965950151,0.20549462,846.88,846.4,0.7948218]
[1756965950349,0.20549462,846.88,846.41,0.7948218]
[1756965951250,0.20549462,846.88,846.42,0.7948218]
[1756965953252,0.20549462,846.88,846.43,0.7948218]
[1756965954861,0.20549462,846.88,846.47,0.7948218]
[1756965956858,0.20549462,846.88,846.5,0.7948218]
[1756965957764,0.20549462,846.88,846.49,0.7948218]
[1756965957962,0.20549462,846.88,846.5,0.7948218]
[1756965958658,0.20549462,846.88,846.51,0.7948218]
[1756965962162,0.20549462,846.88,846.5,0.7948218]
[1756965962760,0.20549462,846.88,846.49,0.7948218]
[1756965966667,0.20549462,846.88,846.5,0.7948218]
[1756965968669,0.20549462,846.88,846.49,0.7948218]
[1756965969365,0.20549462,846.88,846.5,0.7948218]
[1756965971968,0.20549462,846.88,846.51,0.7948218]
[1756965972169,0.20549462,846.88,846.52,0.7948218]
[1756965972768,0.20549462,846.88,846.54,0.7948218]
[1756965973470,0.20549462,846.88,846.56,0.7948218]
[1756965978669,0.20549462,846.88,846.41,1.0612515]
[1756965978870,0.20549462,846.88,846.56,0.79599036]
[1756965979272,0.20549462,846.88,845.68,2.6359517]
[1756965979273,0.20549462,846.88,846.55,0.79599036]
[1756965981076,0.20549462,846.88,846.53,0.79599036]
[1756965981376,0.20549462,846.88,846.54,0.79599036]
[1756965984077,0.20549462,846.88,846.53,0.79599036]
[1756965988576,0.20549462,846.88,846.55,0.79599036]
[1756965991781,0.20549462,846.88,846.57,0.79599036]
[1756965993482,0.20549462,846.88,846.58,0.79599036]
[1756965994179,0.20549462,846.88,845.54,0.20556927]
[1756965994180,0.20549462,846.88,846.57,0.79599036]
[1756965995887,0.20549462,846.88,846.57,0.79577442]
[1756965997182,0.79650857,847.31,846.52,0.79577442]
[1756965997386,0.20545034,846.98,846.51,0.79577442]
[1756965997685,0.79650857,847.33,846.52,0.79577442]
[1756965997886,0.20543215,847.03,846.52,0.79577442]
[1756965998084,0.79650857,847.33,846.52,0.79577442]
[1756965998387,0.20543093,847.03,846.52,0.79577442]
[1756965998579,0.79650857,847.34,846.52,0.79577442]
[1756965998780,0.20543033,847.03,846.52,0.79577442]
[1756965998981,0.20543033,847.03,846.51,0.79577442]
[1756965999181,0.79650857,847.35,846.51,0.79577442]
[1756965999680,0.79650857,847.35,845.54,0.20556927]
[1756965999681,0.79650857,847.26,846.56,0.79577442]
[1756966000482,0.20543882,847.09,846.56,0.79577442]
[1756966001886,0.20543882,847.09,846.6,0.79577442]
[1756966002386,0.20543882,847.09,846.59,0.79577442]
[1756966002785,0.20543882,847.09,846.4,1.0612515]
[1756966002786,0.20543882,847.09,846.6,0.79577442]
[1756966003386,0.20543882,847.09,846.59,0.79577442]
[1756966003587,0.20543882,847.09,845.54,0.20556927]
[1756966003588,0.20543882,847.09,846.63,0.79577442]
[1756966004190,0.20543882,847.09,846.67,0.79577442]
[1756966004388,0.20543882,847.09,846.68,0.79577442]
[1756966005386,0.20543882,847.09,846.67,0.79577442]
[1756966006789,0.20543882,847.09,846.66,0.79577442]
[1756966008691,0.20543882,847.09,846.64,0.79577442]
[1756966008988,0.20543882,847.09,846.65,0.79577442]
[1756966009391,0.20543882,847.09,846.64,0.79577442]
[1756966010889,0.20543882,847.09,845.8,0.20542305]
[1756966010890,0.20543882,847.09,846.61,0.79577442]
[1756966011395,0.20543882,847.09,846.6,0.79577442]
[1756966012096,0.20543882,847.09,846.61,0.79577442]
[1756966012395,0.20543882,847.09,846.6,0.79577442]
[1756966014297,0.20543882,847.09,846.59,0.79577442]
[1756966018603,0.20543882,847.09,846.58,0.79577442]
[1756966018800,0.20543882,847.09,846.6,0.79577442]
[1756966019404,0.20543882,847.09,846.59,0.79577442]
[1756966019703,0.20543882,847.09,846.68,0.79577442]
[1756966019902,0.20543882,847.09,846.7,0.79577442]
[1756966021302,0.20543882,847.09,846.71,0.79577442]
[1756966021504,0.20543882,847.09,846.72,0.79577442]
[1756966022204,0.20543882,847.09,846.71,0.79577442]
[1756966022704,0.20543882,847.09,846.73,0.79577442]
[1756966022909,0.20543882,847.09,846.72,0.79577442]
[1756966023603,0.20543882,847.09,846.7,0.79577442]
[1756966025409,0.20543882,847.09,846.69,0.79577442]
[1756966025610,0.79650857,847.45,846.7,0.79577442]
[1756966025807,0.79650857,847.48,846.74,0.79577442]
[1756966026012,0.2053885,847.24,846.77,0.79577442]
[1756966026210,0.2053885,847.24,846.81,0.79577442]
[1756966026608,0.79650857,847.62,846.87,0.79577442]
[1756966026911,0.20536244,847.33,846.87,0.79577442]
[1756966027105,0.79650857,847.63,846.86,0.79577442]
[1756966027306,0.20535577,847.33,846.86,0.79577442]
[1756966027511,0.20535577,847.33,846.85,0.79577442]
[1756966027807,0.20535577,847.33,846.69,1.0612515]
[1756966027808,0.20534487,847.42,846.89,0.79577442]
[1756966028006,0.20534487,847.42,846.94,0.79577442]
[1756966028210,0.20534487,847.42,846.92,0.79577442]
[1756966028611,0.79650857,847.74,846.92,0.79577442]
[1756966028912,0.20532367,847.51,846.96,0.79577442]
[1756966029106,0.20532367,847.51,846.94,0.79577442]
[1756966029512,0.20532367,847.51,847.0,0.79577442]
[1756966029707,0.20532367,847.51,846.84,1.0612515]
[1756966029708,0.20532367,847.51,847.02,0.79577442]
[1756966030208,0.20532367,847.51,847.0,0.79577442]
[1756966030410,0.20532367,847.51,847.01,0.79577442]
[1756966031213,0.79650857,847.97,847.0,0.79577442]
[1756966031413,0.79650857,848.03,847.01,0.79577442]
[1756966031712,0.79650857,848.04,847.0,0.79577442]
[1756966032116,0.20528491,847.78,846.99,0.79577442]
[1756966032813,0.20528491,847.78,846.98,0.79577442]
[1756966033216,0.20528491,847.78,846.97,0.79577442]
[1756966033516,0.20528491,847.78,847.01,0.79577442]
[1756966033916,0.20528491,847.78,847.02,0.79577442]
[1756966034116,0.20528491,847.78,847.0,0.79577442]
[1756966035314,0.20528491,847.78,846.98,0.79577442]
[1756966036013,0.20528491,847.78,847.0,0.79577442]
[1756966036215,0.20528491,847.78,846.99,0.79577442]
[1756966036419,0.20528491,847.78,846.98,0.79577442]
[1756966037319,0.20528491,847.78,846.95,0.79577442]
[1756966037816,0.20528491,847.78,846.99,0.79577442]
[1756966038219,0.20528491,847.78,846.98,0.79577442]
[1756966038817,0.20528491,847.78,846.99,0.79577442]
[1756966039318,0.20528491,847.78,846.98,0.79577442]
[1756966040120,0.20528491,847.78,846.99,0.79577442]
[1756966041222,0.20528491,847.78,846.98,0.79577442]
[1756966042220,0.20528491,847.78,846.97,0.79577442]
[1756966044020,0.20528491,847.78,846.96,0.79577442]
[1756966045125,0.20528491,847.78,846.95,0.79577442]
[1756966045325,0.20528491,847.78,847.0,0.79577442]
[1756966046124,0.20528491,847.78,846.99,0.79577442]
[1756966048026,0.20528491,847.78,847.0,0.79577442]
[1756966049127,0.20528491,847.78,847.01,0.79577442]
[1756966052225,0.20528491,847.78,847.0,0.79577442]
[1756966053129,0.20528491,847.78,847.01,0.79577442]
[1756966053326,0.20528491,847.78,847.0,0.79577442]
[1756966053627,0.20528491,847.78,847.01,0.79577442]
[1756966055732,0.20528491,847.78,847.0,0.79577442]
[1756966056433,0.20528491,847.78,847.01,0.79577442]
[1756966057532,0.20528491,847.78,846.94,0.79577442]
[1756966057829,0.20528491,847.78,846.87,0.79577442]
[1756966058330,0.20528491,847.78,846.88,0.79577442]
[1756966062431,0.20528491,847.78,846.89,0.79577442]
[1756966063836,0.20528491,847.78,846.9,0.79577442]
[1756966065338,0.20528491,847.78,847.07,0.79577442]
[1756966065534,0.20528491,847.78,847.09,0.79577442]
[1756966065835,0.20528491,847.78,847.1,0.79577442]
[1756966066038,0.20528491,847.78,847.11,0.79577442]
[1756966066735,0.20528491,847.78,847.12,0.79577442]
[1756966067234,0.20528491,847.78,847.11,0.79577442]
[1756966067436,0.20528491,847.78,847.12,0.79577442]
[1756966069436,0.20528491,847.78,845.8,0.20542305]
[1756966069437,0.20528491,847.78,847.14,0.79577442]
[1756966070341,0.20528491,847.78,847.16,0.79577442]
[1756966071542,0.20528491,847.78,847.17,0.79577442]
[1756966073439,0.20528491,847.78,847.18,0.79577442]
[1756966074442,0.20528491,847.78,847.19,0.79577442]
[1756966075141,0.20528491,847.78,847.22,0.79577442]
[1756966075344,0.20528491,847.78,847.09,1.0612515]
[1756966075345,0.20528491,847.78,847.23,0.79577442]
[1756966075545,0.20528491,847.78,847.22,0.79577442]
[1756966076345,0.20528491,847.78,847.23,0.79577442]
[1756966077241,0.20528491,847.78,847.24,0.79577442]
[1756966077445,0.20528491,847.78,847.25,0.79577442]
[1756966078043,0.20528491,847.78,847.23,0.79577442]
[1756966078647,0.79650857,848.34,847.24,0.79577442]
[1756966078848,0.20521832,847.92,847.27,0.79577442]
[1756966079049,0.79650857,848.38,847.26,0.79577442]
[1756966079248,0.20521348,847.93,847.26,0.79577442]
[1756966079448,0.20521348,847.93,847.28,0.79577442]
[1756966079645,0.79650857,848.35,847.28,0.79577442]
[1756966079844,0.20521348,847.93,847.28,0.79577442]
[1756966080144,0.79650857,848.4,847.24,0.79577442]
[1756966080344,0.20521409,847.93,847.31,0.79577442]
[1756966080648,0.20521409,847.93,847.12,1.0612515]
[1756966080649,0.79650857,848.37,847.37,0.79577442]
[1756966080849,0.20520562,847.93,847.36,0.79577442]
[1756966081146,0.79650857,848.37,847.36,0.79577442]
[1756966081345,0.20520804,847.93,847.37,0.79577442]
[1756966081645,0.79650857,848.35,847.37,0.79577442]
[1756966082150,0.79650857,848.32,847.39,0.79577442]
[1756966082350,0.79650857,848.33,847.39,0.79577442]
[1756966082748,0.20520864,848.1,847.39,0.79577442]
[1756966083149,0.20520864,848.1,847.4,0.79577442]
[1756966084157,0.20520864,848.1,847.41,0.79577442]
[1756966085154,0.20520864,848.1,847.43,0.79577442]
[1756966086154,0.20520864,848.1,847.4,0.79577442]
[1756966086853,0.20520864,848.1,847.36,0.79577442]
[1756966087253,0.20520864,848.1,847.37,0.79577442]
[1756966088158,0.20520864,848.1,847.38,0.79577442]
[1756966088859,0.20520864,848.1,847.36,0.79577442]
[1756966089155,0.20520864,848.1,847.37,0.79577442]
[1756966089655,0.20520864,848.1,847.36,0.79577442]
[1756966090258,0.20520864,848.1,847.14,1.0612515]
[1756966090259,0.20520864,848.1,847.37,0.79577442]
[1756966092762,0.20520864,848.1,847.15,1.0612515]
[1756966093057,0.20520864,848.1,847.37,0.78913204]
[1756966095960,0.20520864,848.1,847.38,0.78913204]
[1756966096464,0.20520864,848.1,847.37,0.78913204]
[1756966096765,0.20520864,848.1,847.39,0.78913204]
[1756966098162,0.20520864,848.1,847.4,0.78913204]
[1756966098865,0.20520864,848.1,847.41,0.78913204]
[1756966100266,0.20520864,848.1,847.42,0.78913204]
[1756966103869,0.20520864,848.1,847.43,0.78913204]
[1756966104669,0.20520864,848.1,847.36,0.78913204]
[1756966106068,0.20520864,848.1,847.37,0.78913204]
[1756966107772,0.20520864,848.1,847.35,0.78913204]
[1756966108773,0.20520864,848.1,847.34,0.78913204]
[1756966110270,0.20520864,848.1,847.35,0.78913204]
[1756966113777,0.20520864,848.1,847.33,0.78913204]
[1756966114574,0.20520864,848.1,847.36,0.78913204]
[1756966116776,0.20520864,848.1,847.35,0.78913204]
[1756966116979,0.20520864,848.1,847.11,1.0612515]
[1756966116980,0.20520864,848.1,847.36,0.78913204]
[1756966117680,0.20520864,848.1,847.38,0.78913204]
[1756966117881,0.20520864,848.1,847.4,0.78913204]
[1756966118080,0.20520864,848.1,845.98,2.6359517]
[1756966118081,0.20520864,848.1,847.41,0.78913204]
[1756966118881,0.20520864,848.1,847.42,0.78913204]
[1756966119078,0.20520864,848.1,847.43,0.78913204]
[1756966119480,0.20520864,848.1,847.44,0.78913204]
[1756966120981,0.20520864,848.1,847.45,0.78913204]
[1756966121486,0.20520864,848.1,845.79,3.6903325]
[1756966121487,0.20520864,848.1,847.49,0.78913204]
[1756966122987,0.20520864,848.1,847.51,0.78913204]
[1756966123187,0.20520864,848.1,847.52,0.78913204]
[1756966123487,0.20520864,848.1,847.56,0.78913204]
[1756966124284,0.20520864,848.1,847.58,0.78913204]
[1756966125186,0.20520864,848.1,847.6,0.78913204]
[1756966125385,0.20520864,848.1,847.59,0.78913204]
[1756966125885,0.20520864,848.1,846.48,2.6359517]
[1756966125886,0.20520864,848.1,847.6,0.78913204]
[1756966128694,0.20520864,848.1,847.59,0.78913204]
[1756966129994,0.20520864,848.1,847.6,0.78913204]
[1756966131393,0.20520864,848.1,847.59,0.78913204]
[1756966131798,0.20520864,848.1,847.6,0.78913204]
[1756966132293,0.20520864,848.1,847.61,0.78913204]
[1756966132898,0.20520864,848.1,847.63,0.78913204]
[1756966134496,0.20520864,848.1,847.44,1.0612515]
[1756966134497,0.20520864,848.1,847.62,0.78913204]
[1756966135199,0.20520864,848.1,847.63,0.78913204]
[1756966135394,0.20520864,848.1,847.62,0.78913204]
[1756966135899,0.20520864,848.1,847.65,0.78913204]
[1756966136096,0.20520864,848.1,847.66,0.78913204]
[1756966136300,0.20520864,848.1,847.67,0.78913204]
[1756966136497,0.79353233,848.4,847.66,0.78913204]
[1756966136697,0.20515179,848.25,847.8,0.78913204]
[1756966136897,0.20515179,848.25,847.79,0.78913204]
[1756966137095,0.20515179,848.25,847.82,0.78913204]
[1756966137299,0.20515179,848.25,847.8,0.78913204]
[1756966138096,0.20515179,848.25,847.77,0.78913204]
[1756966138299,0.20515179,848.25,847.57,1.0612515]
[1756966138300,0.20515179,848.25,847.76,0.78913204]
[1756966139301,0.20515179,848.25,847.75,0.78913204]
[1756966140297,0.20515179,848.25,847.74,0.78913204]
[1756966140602,0.20515179,848.25,847.7,0.78913204]
[1756966140801,0.20515179,848.25,847.69,0.78913204]
[1756966140998,0.20515179,848.25,847.7,0.78913204]
[1756966141296,0.20515179,848.25,847.71,0.78913204]
[1756966141500,0.20515179,848.25,847.67,0.78913204]
[1756966141699,0.20515179,848.25,847.68,0.78913204]
[1756966143197,0.20515179,848.25,847.71,0.78913204]
[1756966144399,0.20515179,848.25,847.7,0.78913204]
[1756966145101,0.20515179,848.25,847.63,0.78913204]
[1756966145299,0.20515179,848.25,847.62,0.78913204]
[1756966145500,0.20515179,848.25,847.64,0.78913204]
[1756966146304,0.20515179,848.25,847.62,0.78913204]
[1756966147401,0.20515179,848.25,847.61,0.78913204]
[1756966147605,0.20515179,848.25,847.6,0.78913204]
[1756966148302,0.20515179,848.25,847.59,0.78913204]
[1756966148704,0.20515179,848.25,847.6,0.78913204]
[1756966152510,0.20515179,848.25,847.56,0.78913204]
[1756966155513,0.20515179,848.25,846.33,2.6359517]
[1756966155514,0.20515179,848.25,847.57,0.78913204]
[1756966155709,0.20515179,848.25,847.59,0.78913204]
[1756966157316,0.20515179,848.25,847.54,0.78913204]
[1756966157516,0.20515179,848.25,847.52,0.78913204]
[1756966157712,0.20515179,848.25,847.5,0.78913204]
[1756966158517,0.20515179,848.25,847.51,0.78913204]
[1756966160113,0.20515179,848.25,847.51,0.78783181]
[1756966163117,0.20515179,848.25,845.8,3.89575555]
[1756966163118,0.20515179,848.25,847.49,0.78783181]
[1756966164315,0.20515179,848.25,847.46,0.78783181]
[1756966164615,0.20515179,848.25,847.47,0.78783181]
[1756966164819,0.20515179,848.25,847.45,0.78783181]
[1756966166520,0.20515179,848.25,847.44,0.78783181]
[1756966167321,0.20515179,848.25,847.42,0.78783181]
[1756966167519,0.20515179,848.25,847.43,0.78783181]
[1756966167720,0.20515179,848.25,847.42,0.78783181]
[1756966168425,0.20515179,848.25,847.41,0.78783181]
[1756966169923,0.20515179,848.25,847.38,0.78783181]
[1756966170127,0.9981999,848.25,847.38,0.78783181]
[1756966171622,0.79304811,848.24,847.38,0.78783181]
[1756966172222,0.79304811,848.24,847.39,0.78783181]
[1756966173129,0.79304811,848.24,847.38,0.78783181]
[1756966173328,0.9981999,848.25,847.38,0.78783181]
[1756966174233,0.79304811,848.24,847.38,0.78783181]
[1756966174431,0.9981999,848.25,847.38,0.78783181]
[1756966176335,0.79304811,848.24,847.38,0.78783181]
[1756966177231,0.9981999,848.25,847.38,0.78783181]
[1756966178331,0.79304811,848.24,847.38,0.78783181]
[1756966178935,0.79304811,848.23,847.39,0.78783181]
[1756966179332,0.20515179,848.25,847.38,0.78783181]
[1756966179333,0.79304811,848.24,847.38,0.78783181]
[1756966181540,0.79304811,848.23,847.37,0.78783181]
[1756966181940,0.79304811,848.24,847.37,0.78783181]
[1756966183844,0.20515179,848.25,847.31,0.78783181]
[1756966184442,0.20515179,848.25,847.3,0.78783181]
[1756966185140,0.20515179,848.25,847.31,0.78783181]
[1756966185344,0.20515179,848.25,847.28,0.78783181]
[1756966186246,0.20515179,848.25,847.27,0.78783181]
[1756966188444,0.20515179,848.25,847.26,0.78783181]
[1756966188848,0.20515179,848.25,847.27,0.78783181]
[1756966189447,0.20515179,848.25,847.04,1.0612515]
[1756966189448,0.20515179,848.25,847.26,0.78783181]
[1756966193350,0.20515179,848.25,847.25,0.78783181]
[1756966193550,0.20515179,848.25,847.3,0.78783181]
[1756966194250,0.20515179,848.25,847.29,0.78783181]
[1756966195552,0.20515179,848.25,847.3,0.78783181]
[1756966195847,0.20515179,848.25,847.31,0.78783181]
[1756966196851,0.20515179,848.25,847.3,0.78783181]
[1756966197456,0.20515179,848.25,847.31,0.78783181]
[1756966201357,0.20515179,848.25,847.32,0.78783181]
[1756966201858,0.20515179,848.25,847.33,0.78783181]
[1756966203164,0.20515179,848.25,847.36,0.78783181]
[1756966204366,0.20515179,848.25,847.37,0.78783181]
[1756966204864,0.9981999,848.25,847.36,0.78783181]
[1756966206362,0.9981999,848.25,847.37,0.78783181]
[1756966206363,0.79304811,848.24,847.37,0.78783181]
[1756966208061,0.79304811,848.24,847.38,0.78783181]
[1756966208366,0.79304811,848.23,847.39,0.78783181]
[1756966208662,0.79304811,848.22,847.39,0.78783181]
[1756966208866,0.79304811,848.22,847.37,0.78783181]
[1756966209167,0.79304811,848.21,847.37,0.78783181]
[1756966209368,0.79304811,848.19,847.39,0.78783181]
[1756966210163,0.79304811,848.19,847.4,0.78783181]
[1756966210362,0.79304811,848.18,847.4,0.78783181]
[1756966210567,0.79304811,848.16,847.42,0.78783181]
[1756966213269,0.79304811,848.15,847.43,0.78783181]
[1756966214067,0.79304811,848.14,847.42,0.78783181]
[1756966214270,0.79304811,848.13,847.41,0.78783181]
[1756966214770,0.79304811,848.13,847.4,0.78783181]
[1756966215171,0.79304811,848.13,847.41,0.78783181]
[1756966215472,0.79304811,848.11,847.42,0.78783181]
[1756966215767,0.79304811,848.1,847.42,0.78783181]
[1756966216267,0.79304811,848.1,847.43,0.78783181]
[1756966217266,0.79304811,848.08,847.41,0.78783181]
[1756966218272,0.79304811,848.07,847.42,0.78783181]
[1756966219369,0.79304811,848.07,847.43,0.78783181]
[1756966219574,0.79304811,848.06,847.43,0.78783181]
[1756966220274,0.79304811,848.06,847.44,0.78783181]
[1756966220774,0.79304811,848.05,847.44,0.78783181]
[1756966221873,1.0584186,848.2,846.51,2.6359517]
[1756966221874,0.79304811,848.04,847.45,0.78783181]
[1756966222774,0.79304811,848.01,847.47,0.78783181]
[1756966223269,0.79304811,848.0,847.47,0.78783181]
[1756966224375,0.79304811,848.0,847.48,0.78783181]
[1756966224776,0.79304811,847.99,847.48,0.78783181]
[1756966225175,0.79304811,847.99,847.49,0.78783181]
[1756966225371,0.79304811,847.99,847.48,0.78783181]
[1756966226175,0.20515179,848.25,847.48,0.78783181]
[1756966226176,0.79304811,848.0,847.48,0.78783181]
[1756966227272,0.79304811,847.99,847.48,0.78783181]
[1756966227572,0.79304811,847.99,847.49,0.78783181]
[1756966228875,0.79304811,847.99,847.48,0.78783181]
[1756966229176,0.79304811,848.0,847.48,0.78783181]
[1756966229373,0.79304811,847.99,847.48,0.78783181]
[1756966229572,0.79304811,848.0,847.48,0.78783181]
[1756966229977,0.79304811,848.0,847.47,0.78783181]
[1756966230573,0.79304811,848.01,847.47,0.78783181]
[1756966230877,0.79304811,848.0,847.47,0.78783181]
[1756966232680,0.79304811,848.0,847.48,0.78783181]
[1756966233879,0.79304811,848.0,847.47,0.78783181]
[1756966234279,0.79304811,848.01,847.47,0.78783181]
[1756966236080,0.79304811,848.0,847.47,0.78783181]
[1756966236574,0.79304811,848.01,847.47,0.78783181]
[1756966236779,0.79304811,847.98,847.43,0.78783181]
[1756966236980,0.79304811,847.97,847.44,0.78783181]
[1756966238277,0.79304811,847.98,847.44,0.78783181]
[1756966238980,0.79304811,847.97,847.43,0.78783181]
[1756966239280,0.79304811,847.97,847.44,0.78783181]
[1756966244084,0.79304811,847.96,847.44,0.78783181]
[1756966246384,0.79304811,848.02,847.41,0.78783181]
[1756966246684,0.79304811,848.02,847.42,0.78783181]
[1756966248584,0.79304811,848.01,847.41,0.78783181]
[1756966249087,0.79304811,848.02,847.41,0.78783181]
[1756966251389,0.79304811,848.03,847.41,0.78783181]
[1756966255485,0.79304811,848.03,847.4,0.78783181]
[1756966256091,0.79304811,848.0,847.43,0.78783181]
[1756966256790,0.79304811,848.0,847.42,0.78783181]
[1756966257589,0.79304811,848.04,847.4,0.78783181]
[1756966259189,0.79304811,848.04,847.41,0.78783181]
[1756966259389,0.79304811,848.03,847.41,0.78783181]
[1756966259884,0.79304811,848.05,847.4,0.78783181]
[1756966260787,0.79304811,848.07,847.39,0.78783181]
[1756966261189,0.79304811,848.07,847.4,0.78783181]
[1756966264197,0.79304811,848.06,847.4,0.78783181]
[1756966264490,0.79304811,848.08,847.39,0.78783181]
[1756966266294,0.79304811,848.09,847.39,0.78783181]
[1756966266595,0.79304811,848.08,847.39,0.78783181]
[1756966267590,0.79304811,848.08,847.4,0.78783181]
[1756966268294,0.79304811,848.07,847.4,0.78783181]
[1756966269090,0.79304811,848.07,847.39,0.78783181]
[1756966269291,0.79304811,848.07,847.4,0.78783181]
[1756966269795,0.79304811,848.06,847.4,0.78783181]
[1756966270492,0.79304811,848.05,847.41,0.78783181]
[1756966270796,0.79304811,848.06,847.41,0.78783181]
[1756966270991,0.79304811,848.05,847.41,0.78783181]
[1756966274294,0.79304811,848.05,847.42,0.78783181]
[1756966274595,0.79304811,848.03,847.42,0.78783181]
[1756966275601,0.79304811,848.02,847.43,0.78783181]
[1756966275895,0.79304811,848.04,847.42,0.78783181]
[1756966276096,0.79304811,848.03,847.43,0.78783181]
[1756966276596,0.79304811,848.01,847.44,0.78783181]
[1756966276800,0.79304811,848.03,847.43,0.78783181]
[1756966277399,0.79304811,848.02,847.43,0.78783181]
[1756966278801,0.79304811,848.03,847.44,0.78783181]
[1756966278999,0.79304811,848.02,847.43,0.78783181]
[1756966280601,0.79304811,848.01,847.44,0.78783181]
[1756966280805,0.79304811,848.02,847.43,0.78783181]
[1756966283306,0.79304811,848.01,847.44,0.78783181]
[1756966283605,0.79304811,848.05,847.41,0.78783181]
[1756966283801,0.79304811,848.03,847.4,0.78783181]
[1756966286706,0.79304811,848.02,847.41,0.78783181]
[1756966287306,1.0584186,848.21,847.39,0.78783181]
[1756966287307,0.79304811,848.01,847.39,0.78783181]
[1756966288802,0.79304811,848.0,847.38,0.78783181]
[1756966291003,0.79304811,847.99,847.38,0.78783181]
[1756966291206,0.79304811,847.99,847.39,0.78783181]
[1756966291409,0.79304811,848.0,847.38,0.78783181]
[1756966292111,0.79304811,847.99,847.38,0.78783181]
[1756966292309,0.79304811,848.0,847.38,0.78783181]
[1756966293208,0.79304811,848.01,847.37,0.78783181]
[1756966293406,0.79304811,848.01,847.17,1.0612515]
[1756966293407,0.79304811,847.97,847.4,0.78783181]